Cogmind - Beta 11.1 @@@ ROGUE MODE // 2022.12.03 @ 18:34:13 Player: Richard Blunt Result: Destroyed by as-88199 with Assembled Blade Performance ------------- Evolutions (0) 0 Regions Visited (2) 400 Robots Destroyed (15) 75 Value Destroyed (296) 296 Prototype IDs (2) 40 Alien Tech Used (0) 0 Bonus (0) 0 TOTAL SCORE: 811 Bonus ------- None Cogmind --------- Core Integrity 0/250 Matter 205/300 Energy 164/250 System Corruption 9% Temperature Warm (113) Movement Treading (160) Location -10/Mines Parts ------- > --- POWER (1) -------- Ion Engine > --- PROPULSION (2) --- Light Treads Wheel > --- UTILITY (2) ------ Small Storage Unit Seismic Detector > --- WEAPON (2) ------- Small Laser Light Assault Rifle > --- INVENTORY (8) ---- Sensor Array Signal Interpreter Small Laser Mining Laser Peak State ------------ > --- POWER ------------ Light Nuclear Core > --- PROPULSION ------- Light Treads Compact Wheel > --- UTILITY ---------- Small Storage Unit Seismic Detector > --- WEAPON ----------- Small Laser Small Laser > --- INVENTORY -------- Ion Engine Light Treads Wheel Improved Heat Sink Sensor Array Signal Interpreter Light Assault Rifle Mining Laser [Rating: 10] Favorites ----------- Power Light Nuclear Core Engine Light Ion Engine Power Core Light Nuclear Core Propulsion Light Treads Treads Light Treads Wheel Compact Wheel Utility Small Storage Unit Device Seismic Detector Storage Small Storage Unit Weapon Small Laser Energy Gun Small Laser Ballistic Gun Light Assault Rifle Special Weapon Mining Laser Build | -11 -10 -10 ------- Run | Scr Mat Min Slots Evolved . | . . . Power . | . . . Propulsion . | . . . Utility . | . . . Weapon . | . . . Parts Attached 21 | 7 9 5 Power 3 | 1 1 1 Engine 2 | 1 . 1 Core 1 | . 1 . Reactor . | . . . Propulsion 7 | 2 3 2 Treads 3 | 1 1 1 Leg . | . . . Wheel 4 | 1 2 1 Hover . | . . . Flight . | . . . Utility 2 | 2 . . Device 1 | 1 . . Storage 1 | 1 . . Processor . | . . . Hackware . | . . . Protection . | . . . Artifact . | . . . Weapon 9 | 2 5 2 Energy Gun 6 | 2 3 1 Energy Cannon . | . . . Ballistic Gun 1 | . . 1 Ballistic Cannon . | . . . Launcher . | . . . Special Weapon 2 | . 2 . Impact Weapon . | . . . Slashing Weapon . | . . . Piercing Weapon . | . . . Special Melee Weapon . | . . . Unidentified Prototypes . | . . . Parts Lost 6 | . 3 3 Power 2 | . 1 1 Propulsion 3 | . 2 1 Utility . | . . . Weapon 1 | . . 1 Highest Loss Streak 2 | . 1 2 To Critical Strikes . | . . . Average Slot Usage (%) 98 | . 98 94 Engine 4 | . 4 4 Core 9 | . 9 5 Treads 15 | . 14 25 Wheel 12 | . 13 2 Device 14 | . 14 14 Storage 14 | . 14 14 Energy Gun 25 | . 26 22 Special Weapon 1 | . 1 . Naked Turns . | . . . Heaviest Build 14 | 11 14 14 Greatest Support 20 | 20 16 10 Greatest Overweight (x) 4 | 1 4 1 Average Overweight (x) . | . . 1 Largest Inventory Capacity 8 | 8 8 8 Average Capacity 7 | 7 8 8 Most Carried 8 | 8 8 7 Average Carried 7 | 5 7 6 Final Capacity 8 | 8 8 8 Final Carried 8 | 8 7 4 Class Distribution -------------------- 83% | Mutant 16% | Scavenger-Mutant Dominant Class ---------------- Mutant | -10/Materials Mutant | -10/Mines Resources | -11 -10 -10 ----------- Run | Scr Mat Min Matter Collected 330 | 270 60 . Remotely . | . . . Salvage Created 542 | 106 380 56 Parts 33 | 6 27 . Haulers Intercepted 1 | . 1 . Recyclers Shooed 1 | . 1 . Parts Field Recycled . | . . . Retrieved Matter . | . . . Parts Self-Destructed . | . . . Prevented . | . . . Kills | -11 -10 -10 ------- Run | Scr Mat Min Combat Hostiles Destroyed 12 | . 8 4 Guns 12 | . 8 4 Classes Destroyed 7 | 2 4 1 Tunneler 2 | 2 . . Hauler 1 | . 1 . Recycler 1 | 1 . . Watcher 3 | . 3 . Swarmer 3 | . 3 . Grunt 5 | . 5 . Assembled 4 | . . 4 Best Kill Streak 3 | 2 3 2 Combat Bots Only 3 | . 3 2 Max Kills in Single Turn 2 | 1 2 1 Gunslinging 1 | . 1 . Exploded . | . . . Melee . | . . . Uniques/NPCs Destroyed . | . . . Combat | -11 -10 -10 -------- Run | Scr Mat Min Damage Taken 970 | . 471 499 Core 268 | . 140 128 Absorbed by Shields . | . . . Core Remaining (%) 100 | 100 . . Volleys Fired 75 | 6 49 20 Largest 2 | 2 2 2 Hottest 150 | 80 150 90 Shots Fired 141 | 12 89 40 Gun 138 | 12 86 40 Cannon . | . . . Launcher . | . . . Special 3 | . 3 . Kinetic 11 | . . 11 Thermal 130 | 12 89 29 Explosive . | . . . Electromagnetic . | . . . Robot Hit Streak 8 | 6 8 5 Robot Miss Streak 4 | 1 3 4 Penetration Max . | . . . Secondary Targets 2 | . 2 . Max Gunslinging Chain 1 | . 1 . Shots Hit Robots 82 | 8 53 21 Core Hits 38 | 4 24 10 Critical Kills . | . . . Critical Parts Destroyed . | . . . Critical Strikes 1 | . . 1 Burn 1 | . . 1 Melee Attacks . | . . . Impact . | . . . Slashing . | . . . Piercing . | . . . Sneak Attacks . | . . . Combat Hostiles . | . . . Follow-up Attacks . | . . . Damage Inflicted 1000 | 90 688 222 Guns 962 | 90 650 222 Cannons . | . . . Explosions . | . . . Melee . | . . . Ramming 14 | . 14 . Kinetic 53 | . . 53 Thermal 933 | 90 674 169 Explosive . | . . . Electromagnetic . | . . . Impact . | . . . Slashing . | . . . Piercing . | . . . Highest Corruption 9 | . 4 9 Average Corruption 4 | . 4 6 Corruption Purged . | . . . Corruption Blocked . | . . . Effects 9 | . 4 5 Message Errors 1 | . . 1 Matter Fused 3 | . 3 . Heat Flow Errors 1 | . . 1 Energy Discharges 2 | . 1 1 Data Loss (minor) 1 | . . 1 Data Loss (major) 1 | . . 1 Overload Shots . | . . . Overflow Damage . | . . . Projectiles . | . . . Explosions . | . . . Melee . | . . . Knockbacks . | . . . Impact . | . . . Kinetic . | . . . Secondary . | . . . Self-Inflicted Damage 7 | . 7 . Shots . | . . . Rammed 1 | . 1 . Targets Rammed 1 | . 1 . Kicked . | . . . Crushed . | . . . Highest Temperature 209 | 54 209 123 Average Temperature 72 | 23 74 81 Received Heat Transfer 195 | . 195 . Siege Activations . | . . . Robots Corrupted . | . . . Combat Hostiles . | . . . Parts Fried . | . . . Impact Corruptions . | . . . Robots Melted . | . . . Combat Hostiles . | . . . Parts Melted 2 | . 2 . Heat Transferred 2267 | 200 1582 485 Parts Sabotaged . | . . . Parts Stolen . | . . . Parts Stripped . | . . . Power Chain Reactions . | . . . Missiles Intercepted . | . . . Alert | -11 -10 -10 ------- Run | Scr Mat Min Peak Influence 165 | 15 165 28 Initial 28 | . 9 28 Average 64 | 6 76 16 Maximum Alert Level . | . . . Low Security (%) 100 | 100 100 100 Level 1 . | . . . Level 2 . | . . . Level 3 . | . . . Level 4 . | . . . Level 5 . | . . . High Security . | . . . Max Security . | . . . Squads Dispatched 3 | . 3 . Investigation 2 | . 2 . Extermination . | . . . Reinforcement 1 | . 1 . Assault . | . . . Garrison . | . . . Intercept . | . . . Searches Triggered . | . . . Construction Impeded . | . . . Haulers Reinforced . | . . . Active Scanning Responses . | . . . Cargo Convoy Interrupts . | . . . Stealth | -11 -10 -10 --------- Run | Scr Mat Min Distress Signals 2 | . 2 . Communications Jammed . | . . . Distress Signals . | . . . Times Spotted 25 | . 19 6 Peak Tracking Total 5 | . 3 5 Tactical Retreats 2 | . 1 1 Traps | -11 -10 -10 ------- Run | Scr Mat Min Traps Triggered . | . . . Indirectly . | . . . Trap Hack Attempts . | . . . Triggered . | . . . Disarmed . | . . . Reprogrammed . | . . . Reused . | . . . Traps Extracted . | . . . Installed . | . . . Triggered . | . . . Machines | -11 -10 -10 ---------- Run | Scr Mat Min Machines Disabled . | . . . Max in Single Turn . | . . . Machines Sabotaged . | . . . Garrisons Compromised . | . . . Overloaded Fab Kills . | . . . Hacking | -11 -10 -10 --------- Run | Scr Mat Min Machines Accessed 6 | . 6 . Terminals 4 | . 4 . Fabricators . | . . . Repair Stations . | . . . Recycling Units 2 | . 2 . Scanalyzers . | . . . Garrison Access . | . . . Total Hacks 15 | . 15 . Successful 7 | . 7 . Failed 7 | . 7 . Catastrophic . | . . . Database Lockouts 1 | . 1 . Manual 8 | . 8 . Terminals 13 | . 13 . Fabricators . | . . . Repair Stations . | . . . Recycling Units 2 | . 2 . Scanalyzers . | . . . Garrison Access . | . . . Terminal Hacks 5 | . 5 . Robot Analysis 1 | . 1 . Prototype ID Bank 1 | . 1 . Locate Traps 1 | . 1 . Zone Layout 2 | . 2 . Fabricator Hacks . | . . . Repair Station Hacks . | . . . Recycling Unit Hacks . | . . . Scanalyzer . | . . . Garrison Access Hacks . | . . . Unauthorized Hacks 2 | . 2 . Terminals . | . . . Fabricators . | . . . Repair Stations . | . . . Recycling Units 2 | . 2 . Tunnel 2 | . 2 . Scanalyzers . | . . . Garrison Access . | . . . Data Cores Recovered . | . . . Used . | . . . Hacking Detections 4 | . 4 . Full Trace Events 1 | . 1 . Feedback Events . | . . . Feedback Blocked . | . . . Robot Schematics Acquired . | . . . Robots Built . | . . . Authchips . | . . . Time . | . . . Total Robot Build Rating . | . . . Part Schematics Acquired . | . . . Parts Built . | . . . Authchips . | . . . Time . | . . . Total Part Build Rating . | . . . Parts Repaired . | . . . Time . | . . . Parts Recycled . | . . . Recycled Matter . | . . . Retrieved Matter . | . . . Retrieved Components . | . . . Parts Scanalyzed . | . . . Part Schematics Acquired . | . . . Parts Damaged . | . . . Bothacking | -11 -10 -10 ------------ Run | Scr Mat Min Used RIF Installer . | . . . Robots Hacked . | . . . Non-combat . | . . . Combat . | . . . Robot Hacks Applied . | . . . Relay Couplers Released . | . . . Fabnet Peak Effective % . | . . . Robots Rewired . | . . . Allies Hacked . | . . . Hacks Repelled . | . . . Allies | -11 -10 -10 -------- Run | Scr Mat Min Total Allies . | . . . Largest Group . | . . . Highest-Rated Group . | . . . Highest-Rated Ally . | . . . Total Orders . | . . . Ally Attacks . | . . . Total Damage . | . . . Kills . | . . . Allies Corrupted . | . . . Allies Melted . | . . . Intel | -11 -10 -10 ------- Run | Scr Mat Min Robot Analysis Total 1 | . 1 . Derelict Logs Recovered . | . . . Drone Launches . | . . . Drone Recoveries . | . . . Exploration | -11 -10 -10 ------------- Run | Scr Mat Min Turns Passed 1064 | 98 865 101 Spaces Moved 768 | 67 692 9 Core 16 | 2 14 . Treads 3 | 3 . . Legs . | . . . Wheels 749 | 62 678 9 Hover . | . . . Flight . | . . . Fastest Speed 50 | 50 95 95 Average Speed 99 | 89 100 95 Slowest Speed 250 | 160 250 95 Overloaded Moves . | . . . Propulsion Burnouts . | . . . Robots Hopped . | . . . Cave-ins Triggered . | . . . Exploration Rate (%) 34 | 3 98 3 Regions Visited 2 Branch Regions 1 Pre-discovered Areas 2 | . 2 . Known Exits Taken . | . . . Unknown Exits Taken 2 | 1 1 . Scrap Searched . | . . . Spaces Dug 2 | . 2 . Terrain Destroyed 2 | . 2 . Melee . | . . . Projectile 2 | . 2 . AOE . | . . . Terrain Rammed . | . . . Walls Destroyed . | . . . Machines Disabled . | . . . Actions | -11 -10 -10 --------- Run | Scr Mat Min Total 915 | 89 762 64 Wait 32 | . 2 30 Move 766 | 66 691 9 Hop . | . . . Pick Up 13 | 9 4 . Fast Attach 9 | 7 2 . Attach 4 | . 1 3 Detach . | . . . Swap 8 | . 6 2 Drop 7 | 1 6 . Fire 75 | 6 49 20 Melee . | . . . Ram 1 | . 1 . Kick . | . . . Crush . | . . . Escape Stasis . | . . . Rewire . | . . . Trap . | . . . Miscellaneous . | . . . Route ------- -11/Scrapyard -10/Materials (discovered 4 exits: [*Mat x3] / [*Min]) -10/Mines History --------- Turn | Location | Event 25 | -11/Scrapyard | Discovered new exit (range 16) 99 | -11/Scrapyard | Entered Materials 129 | -10/Materials | Central database locked down 232 | -10/Materials | Discovered new exit (range 13) 304 | -10/Materials | Build established: Mutant 401 | -10/Materials | Discovered new exit (range 10) 684 | -10/Materials | Discovered new exit (range 15) 753 | -10/Materials | Core integrity fell below 50% 824 | -10/Materials | Discovered new exit (range 15) 964 | -10/Materials | Entered Mines 965 | -10/Mines | Assembled infested the area 970 | -10/Mines | Assisted by a Guerilla fighting off Assembled 1052 | -10/Mines | Core integrity fell below 20% 1065 | -10/Mines | Destroyed by as-88199 with Assembled Blade Last Messages --------------- coming from, and they're closing on this area, come on!" 00970_ K-01 Serf collects debris. 00971_ TI-SM7(h): "I'll hold them off! Go on ahead or try to find another way!" 00974_ K-01 Serf collects debris. 00984_ System corrupted: Substantial component data lost. 00994_ K-01 Serf destroyed. 01001_ as-17885 destroyed. 01002_ Lgt. Nuclear Core destroyed. 01002_ System corrupted by crushing effect (+3). 01004_ as-31342 suffers critical hit (Burn). 01004_ as-31342 destroyed. 01007_ System corrupted: Energy discharge (-33). 01017_ Med. Laser destroyed. 01017_ System corrupted by crushing effect (+2). 01024_ System corrupted: Heat flow error (+106). 01030_ as-62175 destroyed. 01053_ Lgt. Treads destroyed. 01060_ System corrupted: Component data lost. 01061_ as-52367 destroyed. Map ----- +----------------------------------------------------+ | ?????????????????????????????????????? | | ?????????????????????????????????????? | | ?????????????????????????????????????? | | ?????????????????????????????????????? | | ?????????????????????????????????????? | | ?????????????????????????????????????? | | ?????????????????????????????????????? | | ?????????????????????????????????????? | | ?????????????????????????????????????? | | ?????????????????????????????????????? | | ?????????????????????????????????????? | | ?????????????????????????????????????? | | ?????????????????????????????????????? | | ?????????????????????????????????????? | | ?????????????????????????????????????? | | ?????????????????????????????????????? | | ?????????????????????????????????????? | | ?????????????????????????????????????? | | ?????????????????????????????????????? | | ?????????????????????????????????????? | | ?????????????????????????????????????? | | ?????????????????????#???????????????? | | ?????????????????????# ####??????????? | | ?????????????????????# a!#??????????? | | ?????????????????????####a#??????????? | | ??????????????????????###@#####??????? | | ??????????????????????# %%% #??????? | | ??????????????????????# #??????? | | ??????????????????????# #??????? | | ??????????????????????# #??????? | | ??????????????????????# #??????? | | ??????????????????????# #??????? | | ??????????????????????#########??????? | | ?????????????????????????????????????? | | ?????????????????????????????????????? | | ?????????????????????????????????????? | | ?????????????????????????????????????? | | ?????????????????????????????????????? | | ?????????????????????????????????????? | | ?????????????????????????????????????? | | ?????????????????????????????????????? | | ?????????????????????????????????????? | | ?????????????????????????????????????? | | ?????????????????????????????????????? | | ?????????????????????????????????????? | | ?????????????????????????????????????? | | ?????????????????????????????????????? | | ?????????????????????????????????????? | | ?????????????????????????????????????? | | ?????????????????????????????????????? | +----------------------------------------------------+ Best States ------------- Heat Dissipation 25 Energy Generation 14 Energy Capacity 250 Matter Stores 300 Matter Capacity 300 Sight Range 16 Terrain Scan Density 10 Evasion (%) 44 Recoil Reduction 2 Item Schematics ----------------- None Robot Schematics ------------------ None Fabricated ------------ Nothing Alien Tech Used ----------------- None Achievements -------------- None Challenges ------------ None Game ------ Seed ExperimentalNovaArmor Manual? 0 Play Time 00:17:33 Cumulative 95.3 hours Start 2022.12.03 @ 16:16:32 End 2022.12.03 @ 18:34:13 Sessions 2 Manual Loads 0 Difficulty Rogue Special Mode None Game No. 26 Rogue 26 Adventurer 0 Explorer 0 Win Type - Total 0 Types 0/0/0/0/0/0/0/0/0 Lore% 42 Gallery% 44 Achievement% 40 Wizard Run 0 Options --------- ASCII 0 Keyboard 1 Movement Vi Keybinds 0 Fullscreen 1 Font 18/SmallcapsGlow Map View 76x50 Tactical HUD 1 Map Filters NONE Filters NONE Steam 1 RUN: c760165c-8282-40d9-8f77-357887395381